[Event "Early-Titled-Tuesday-Blitz-February-06-2024"]
[Site "Chess.com"]
[Date "2024.02.06"]
[Round "9"]
[White "zsoltkorpics"]
[Black "Ind1anStar"]
[Result "1/2-1/2"]
[WhiteElo "2486"]
[BlackElo "2598"]
[TimeControl "180+1"]
[EndTime "9:45:12 PST"]
[Termination "Game drawn by repetition"]

1. e4 {[%clk 0:03:00.9]} 1... e6 {[%clk 0:02:58.2]} 2. d4 {[%clk 0:03:00.1]}
2... d5 {[%clk 0:02:55.3]} 3. Bd3 {[%clk 0:03:00.6]} 3... dxe4 {[%clk
0:02:51.5]} 4. Bxe4 {[%clk 0:03:01.5]} 4... Nf6 {[%clk 0:02:51.9]} 5. Bf3 {[%clk
0:03:01.7]} 5... c5 {[%clk 0:02:52.3]} 6. Ne2 {[%clk 0:03:01.7]} 6... Nc6 {[%clk
0:02:52.2]} 7. Be3 {[%clk 0:03:01.8]} 7... e5 {[%clk 0:02:43.2]} 8. Bxc6+ {[%clk
0:02:38.5]} 8... bxc6 {[%clk 0:02:44.1]} 9. dxe5 {[%clk 0:02:04.5]} 9... Qxd1+
{[%clk 0:02:45]} 10. Kxd1 {[%clk 0:02:04.5]} 10... Ng4 {[%clk 0:02:45.4]} 11.
Kd2 {[%clk 0:01:57.8]} 11... Nxe5 {[%clk 0:02:41.7]} 12. b3 {[%clk 0:01:49.1]}
12... Bf5 {[%clk 0:02:39.3]} 13. Nbc3 {[%clk 0:01:46.7]} 13... O-O-O+ {[%clk
0:02:31.4]} 14. Kc1 {[%clk 0:01:44.7]} 14... c4 {[%clk 0:02:27.5]} 15. Kb2
{[%clk 0:01:43.9]} 15... Kb7 {[%clk 0:02:17.9]} 16. f3 {[%clk 0:01:43.4]} 16...
f6 {[%clk 0:02:17.1]} 17. Rad1 {[%clk 0:01:41.6]} 17... Be7 {[%clk 0:02:14.6]}
18. Ng3 {[%clk 0:01:37.6]} 18... Bg6 {[%clk 0:01:59]} 19. Nge4 {[%clk
0:01:36.1]} 19... cxb3 {[%clk 0:01:51.5]} 20. axb3 {[%clk 0:01:32.9]} 20... h5
{[%clk 0:01:27.9]} 21. Bc5 {[%clk 0:01:24]} 21... Bxe4 {[%clk 0:00:57.8]} 22.
Nxe4 {[%clk 0:01:21.7]} 22... Bxc5 {[%clk 0:00:50.8]} 23. Nxc5+ {[%clk
0:01:22.6]} 23... Kb6 {[%clk 0:00:51]} 24. Ne6 {[%clk 0:01:19.9]} 24... Rxd1
{[%clk 0:00:48.7]} 25. Rxd1 {[%clk 0:01:20.8]} 25... g5 {[%clk 0:00:48.9]} 26.
f4 {[%clk 0:00:56.1]} 26... gxf4 {[%clk 0:00:30.3]} 27. Nxf4 {[%clk 0:00:57]}
27... Ng4 {[%clk 0:00:30.7]} 28. h3 {[%clk 0:00:53.6]} 28... Ne3 {[%clk
0:00:30.9]} 29. Rd3 {[%clk 0:00:52.8]} 29... Nf5 {[%clk 0:00:30.5]} 30. Nxh5
{[%clk 0:00:23.1]} 30... Rxh5 {[%clk 0:00:27.7]} 31. g4 {[%clk 0:00:23.4]} 31...
Rg5 {[%clk 0:00:27.6]} 32. gxf5 {[%clk 0:00:23.7]} 32... Rxf5 {[%clk 0:00:28.5]}
33. h4 {[%clk 0:00:24]} 33... Rh5 {[%clk 0:00:26.1]} 34. Rf3 {[%clk 0:00:22.2]}
34... Rxh4 {[%clk 0:00:25.4]} 35. Rxf6 {[%clk 0:00:22.3]} 35... Rh2 {[%clk
0:00:25.8]} 36. Rf3 {[%clk 0:00:19.9]} 36... c5 {[%clk 0:00:24.9]} 37. Rf6+
{[%clk 0:00:19]} 37... Kb5 {[%clk 0:00:25.3]} 38. Kc3 {[%clk 0:00:18.1]} 38...
Rh3+ {[%clk 0:00:22.5]} 39. Kb2 {[%clk 0:00:17.9]} 39... Rh2 {[%clk 0:00:23.3]}
40. Rf3 {[%clk 0:00:17.9]} 40... a5 {[%clk 0:00:23]} 41. Rc3 {[%clk 0:00:18]}
41... Rg2 {[%clk 0:00:22.9]} 42. Rc4 {[%clk 0:00:18.4]} 42... Rh2 {[%clk
0:00:21.7]} 43. Rc3 {[%clk 0:00:13.8]} 43... Rf2 {[%clk 0:00:21.8]} 44. Rc4
{[%clk 0:00:14.3]} 44... Rh2 {[%clk 0:00:20.2]} 45. Rg4 {[%clk 0:00:14.4]} 45...
Rf2 {[%clk 0:00:20.3]} 46. Rg8 {[%clk 0:00:14.4]} 46... Rh2 {[%clk 0:00:18.7]}
47. Rb8+ {[%clk 0:00:14.9]} 47... Kc6 {[%clk 0:00:19.1]} 48. Kc3 {[%clk
0:00:14.9]} 48... Rg2 {[%clk 0:00:17]} 49. Ra8 {[%clk 0:00:14.5]} 49... Kb5
{[%clk 0:00:16.8]} 50. Rb8+ {[%clk 0:00:14.6]} 50... Kc6 {[%clk 0:00:17.2]} 51.
Rh8 {[%clk 0:00:14.3]} 51... Kb5 {[%clk 0:00:17.2]} 52. Rh3 {[%clk 0:00:13.1]}
52... Rf2 {[%clk 0:00:17.7]} 53. Kb2 {[%clk 0:00:13.3]} 53... Rg2 {[%clk
0:00:18]} 54. Rc3 {[%clk 0:00:13.6]} 54... Rh2 {[%clk 0:00:18.4]} 55. Rc4 {[%clk
0:00:14]} 55... Rg2 {[%clk 0:00:18.7]} 56. Rc3 {[%clk 0:00:14.1]} 56... Rh2
{[%clk 0:00:19.1]} 57. Rc4 {[%clk 0:00:14.6]} 57... Rg2 {[%clk 0:00:19.5]} 58.
Rc3 {[%clk 0:00:15.1]} 1/2-1/2

[Event "Early-Titled-Tuesday-Blitz-February-06-2024"]
[Site "Chess.com"]
[Date "2024.02.06"]
[Round "9"]
[White "Karttunen"]
[Black "LornerAcosta"]
[Result "0-1"]
[WhiteElo "2661"]
[BlackElo "2517"]
[TimeControl "180+1"]
[EndTime "9:45:15 PST"]
[Termination "LornerAcosta won by resignation"]

1. c4 {[%clk 0:02:53.9]} 1... Nf6 {[%clk 0:02:59.1]} 2. Nc3 {[%clk 0:02:53.7]}
2... e6 {[%clk 0:02:59.6]} 3. e4 {[%clk 0:02:52.6]} 3... d5 {[%clk 0:02:57.3]}
4. cxd5 {[%clk 0:02:43.1]} 4... exd5 {[%clk 0:02:55.5]} 5. e5 {[%clk 0:02:43.4]}
5... Nfd7 {[%clk 0:02:44.2]} 6. Nf3 {[%clk 0:02:30.3]} 6... c6 {[%clk
0:02:37.9]} 7. d4 {[%clk 0:02:28.1]} 7... Be7 {[%clk 0:02:36.5]} 8. Bd3 {[%clk
0:02:27.5]} 8... f6 {[%clk 0:02:22.8]} 9. Qc2 {[%clk 0:02:23.6]} 9... fxe5
{[%clk 0:02:20.2]} 10. Nxe5 {[%clk 0:02:15.8]} 10... Nxe5 {[%clk 0:01:58.6]} 11.
dxe5 {[%clk 0:02:15.8]} 11... g6 {[%clk 0:01:56.8]} 12. h4 {[%clk 0:01:55.3]}
12... Be6 {[%clk 0:01:32.6]} 13. h5 {[%clk 0:01:51.4]} 13... gxh5 {[%clk
0:01:31.6]} 14. Rxh5 {[%clk 0:01:46.7]} 14... Kd7 {[%clk 0:00:26.4]} 15. Be3
{[%clk 0:01:09.2]} 15... h6 {[%clk 0:00:23]} 16. O-O-O {[%clk 0:01:06.5]} 16...
Qg8 {[%clk 0:00:21.4]} 17. g3 {[%clk 0:01:00.6]} 17... Bg4 {[%clk 0:00:19.1]}
18. Bf5+ {[%clk 0:01:00.1]} 18... Ke8 {[%clk 0:00:19.3]} 19. Bxg4 {[%clk
0:00:57]} 19... Qxg4 {[%clk 0:00:18.9]} 20. Rxh6 {[%clk 0:00:52]} 20... Rxh6
{[%clk 0:00:18.3]} 21. Bxh6 {[%clk 0:00:52.9]} 21... Nd7 {[%clk 0:00:15.6]} 22.
Bf4 {[%clk 0:00:51.6]} 22... Nc5 {[%clk 0:00:13]} 23. Qh7 {[%clk 0:00:48.1]}
23... Kd7 {[%clk 0:00:12.1]} 24. e6+ {[%clk 0:00:46.4]} 24... Nxe6 {[%clk
0:00:11.6]} 25. Nxd5 {[%clk 0:00:34.8]} 25... cxd5 {[%clk 0:00:10.2]} 26. Rxd5+
{[%clk 0:00:35.4]} 26... Ke8 {[%clk 0:00:10.6]} 27. Qh8+ {[%clk 0:00:27.4]}
27... Nf8 {[%clk 0:00:10.1]} 28. Kd2 {[%clk 0:00:20.3]} 28... Rd8 {[%clk
0:00:09.3]} 29. Rxd8+ {[%clk 0:00:19]} 29... Kxd8 {[%clk 0:00:10.2]} 30. Qd4+
{[%clk 0:00:19]} 30... Qd7 {[%clk 0:00:10.1]} 31. Qxd7+ {[%clk 0:00:16.6]} 31...
Kxd7 {[%clk 0:00:10.1]} 32. Be3 {[%clk 0:00:17]} 32... a6 {[%clk 0:00:10.2]} 33.
f4 {[%clk 0:00:17.5]} 33... Ke6 {[%clk 0:00:09.9]} 34. g4 {[%clk 0:00:17.8]}
34... Bf6 {[%clk 0:00:09.3]} 35. b3 {[%clk 0:00:17.7]} 35... Kd5 {[%clk
0:00:09.8]} 36. Kd3 {[%clk 0:00:18]} 36... Ne6 {[%clk 0:00:09.9]} 37. f5 {[%clk
0:00:18.6]} 37... Ng5 {[%clk 0:00:09.7]} 38. Bf4 {[%clk 0:00:15.7]} 38... Ne4
{[%clk 0:00:09.9]} 39. Be3 {[%clk 0:00:15.4]} 39... b5 {[%clk 0:00:08.8]} 40. a4
{[%clk 0:00:15.1]} 40... Nc5+ {[%clk 0:00:07.6]} 41. Kc2 {[%clk 0:00:12.6]}
41... bxa4 {[%clk 0:00:06.8]} 42. bxa4 {[%clk 0:00:13.2]} 42... Nxa4 {[%clk
0:00:06.9]} 43. g5 {[%clk 0:00:13.7]} 43... Be5 {[%clk 0:00:06.6]} 44. g6 {[%clk
0:00:12.9]} 44... Nc5 {[%clk 0:00:05.8]} 45. Bh6 {[%clk 0:00:12.6]} 45... Nd7
{[%clk 0:00:05]} 46. Bg5 {[%clk 0:00:11.3]} 46... Ke4 {[%clk 0:00:04.8]} 47. f6
{[%clk 0:00:08.9]} 47... Bxf6 {[%clk 0:00:04.2]} 48. Bd2 {[%clk 0:00:07.1]}
48... Kf5 {[%clk 0:00:04]} 49. Kb3 {[%clk 0:00:07.6]} 49... Kxg6 {[%clk
0:00:03.3]} 50. Ka4 {[%clk 0:00:07.9]} 50... Bd8 {[%clk 0:00:03.6]} 51. Be3
{[%clk 0:00:08.3]} 51... Kf5 {[%clk 0:00:03.6]} 52. Bd4 {[%clk 0:00:08.7]} 52...
Ke6 {[%clk 0:00:04.1]} 53. Be3 {[%clk 0:00:09.1]} 53... Kd5 {[%clk 0:00:04.7]}
54. Bf2 {[%clk 0:00:09.3]} 54... Nc5+ {[%clk 0:00:05.1]} 55. Kb4 {[%clk
0:00:09.1]} 55... Nd3+ {[%clk 0:00:05.6]} 0-1

[Event "Early-Titled-Tuesday-Blitz-February-06-2024"]
[Site "Chess.com"]
[Date "2024.02.06"]
[Round "9"]
[White "LyonBeast"]
[Black "GHANDEEVAM2003"]
[Result "1-0"]
[WhiteElo "3167"]
[BlackElo "3041"]
[TimeControl "180+1"]
[EndTime "9:45:16 PST"]
[Termination "LyonBeast won by resignation"]

1. e4 {[%clk 0:03:00.9]} 1... c6 {[%clk 0:03:00.3]} 2. d4 {[%clk 0:03:00.2]}
2... d5 {[%clk 0:03:00.8]} 3. e5 {[%clk 0:03:00.9]} 3... Bf5 {[%clk 0:03:00.8]}
4. Nf3 {[%clk 0:03:00.4]} 4... e6 {[%clk 0:03:01.4]} 5. Be2 {[%clk 0:03:00.9]}
5... c5 {[%clk 0:03:01.6]} 6. Be3 {[%clk 0:02:58.9]} 6... cxd4 {[%clk
0:02:59.1]} 7. Nxd4 {[%clk 0:02:58.8]} 7... Ne7 {[%clk 0:02:59.8]} 8. c3 {[%clk
0:02:37.9]} 8... Nbc6 {[%clk 0:02:59.2]} 9. Qa4 {[%clk 0:02:24.6]} 9... Qd7
{[%clk 0:02:37.6]} 10. O-O {[%clk 0:02:21.6]} 10... Nxe5 {[%clk 0:02:32.5]} 11.
Bb5 {[%clk 0:02:21.6]} 11... N5c6 {[%clk 0:02:33.2]} 12. c4 {[%clk 0:02:21.9]}
12... Rc8 {[%clk 0:02:21.5]} 13. Nc3 {[%clk 0:02:16.9]} 13... a6 {[%clk
0:01:48.3]} 14. Bxc6 {[%clk 0:02:16.7]} 14... bxc6 {[%clk 0:01:48.6]} 15. Rad1
{[%clk 0:02:01.7]} 15... Bg6 {[%clk 0:01:36.3]} 16. Qxa6 {[%clk 0:02:01]} 16...
Nf5 {[%clk 0:01:30]} 17. Nxf5 {[%clk 0:01:59.1]} 17... Bxf5 {[%clk 0:01:30.2]}
18. Na4 {[%clk 0:01:40.9]} 18... Rb8 {[%clk 0:01:02.8]} 19. cxd5 {[%clk
0:01:38.2]} 19... exd5 {[%clk 0:00:56.6]} 20. Rfe1 {[%clk 0:01:37.4]} 20... Qb7
{[%clk 0:00:51]} 21. Qe2 {[%clk 0:01:19.5]} 21... Be6 {[%clk 0:00:51.3]} 22. Bd4
{[%clk 0:01:06.5]} 22... Qb5 {[%clk 0:00:50.7]} 23. Qe5 {[%clk 0:01:02.3]} 23...
Kd7 {[%clk 0:00:45.3]} 24. Nc3 {[%clk 0:00:53.5]} 24... Qb4 {[%clk 0:00:39.6]}
25. Ne4 {[%clk 0:00:49.4]} 25... Re8 {[%clk 0:00:34]} 26. a3 {[%clk 0:00:42.2]}
26... Qb8 {[%clk 0:00:33.2]} 27. Qg5 {[%clk 0:00:34.9]} 27... h6 {[%clk
0:00:26.3]} 28. Qc1 {[%clk 0:00:34.9]} 28... Rg8 {[%clk 0:00:19.6]} 29. Nc5+
{[%clk 0:00:33.8]} 29... Bxc5 {[%clk 0:00:19.9]} 30. Qxc5 {[%clk 0:00:34.2]}
30... Qb7 {[%clk 0:00:15.6]} 31. Rc1 {[%clk 0:00:32.8]} 31... f6 {[%clk
0:00:14.4]} 32. Re3 {[%clk 0:00:30.4]} 32... Bf5 {[%clk 0:00:11.9]} 33. Rce1
{[%clk 0:00:23]} 33... Rxe3 {[%clk 0:00:11.5]} 34. Rxe3 {[%clk 0:00:23.9]} 34...
Re8 {[%clk 0:00:11.8]} 35. h3 {[%clk 0:00:21.4]} 35... Rxe3 {[%clk 0:00:11.2]}
36. fxe3 {[%clk 0:00:22.1]} 36... Be4 {[%clk 0:00:10.6]} 37. Qf8 {[%clk
0:00:20.5]} 37... Ke6 {[%clk 0:00:10.6]} 38. Qe8+ {[%clk 0:00:19.9]} 38... Kd6
{[%clk 0:00:10.6]} 39. b4 {[%clk 0:00:19.2]} 39... Qd7 {[%clk 0:00:04.8]} 40.
Bc5+ {[%clk 0:00:19.3]} 40... Kc7 {[%clk 0:00:05.5]} 41. Qa8 {[%clk 0:00:18.2]}
41... Qc8 {[%clk 0:00:04.3]} 42. Bb6+ {[%clk 0:00:16.1]} 42... Kd7 {[%clk
0:00:04.9]} 43. Qa7+ {[%clk 0:00:16.5]} 43... Ke6 {[%clk 0:00:05.4]} 44. Qxg7
{[%clk 0:00:16.7]} 44... Qd7 {[%clk 0:00:03.2]} 45. Qg8+ {[%clk 0:00:14.6]}
45... Qf7 {[%clk 0:00:03]} 46. Qg3 {[%clk 0:00:13.6]} 46... f5 {[%clk
0:00:02.3]} 47. Bd4 {[%clk 0:00:11.8]} 47... f4 {[%clk 0:00:02.6]} 48. exf4
{[%clk 0:00:11.2]} 48... Qg6 {[%clk 0:00:03.3]} 49. Qxg6+ {[%clk 0:00:11.3]}
49... Bxg6 {[%clk 0:00:04.2]} 50. g4 {[%clk 0:00:11.8]} 50... Bd3 {[%clk
0:00:03.8]} 51. f5+ {[%clk 0:00:12.2]} 51... Kf7 {[%clk 0:00:04]} 52. Kf2 {[%clk
0:00:12.8]} 52... Bb5 {[%clk 0:00:04.5]} 53. Kg3 {[%clk 0:00:13.2]} 53... Bf1
{[%clk 0:00:04.7]} 54. a4 {[%clk 0:00:12.7]} 54... Bd3 {[%clk 0:00:04.8]} 55. a5
{[%clk 0:00:13.1]} 1-0

[Event "Early-Titled-Tuesday-Blitz-February-06-2024"]
[Site "Chess.com"]
[Date "2024.02.06"]
[Round "9"]
[White "Felix-Rose"]
[Black "BestestBP"]
[Result "0-1"]
[WhiteElo "2370"]
[BlackElo "2263"]
[TimeControl "180+1"]
[EndTime "9:45:16 PST"]
[Termination "BestestBP won by resignation"]

1. d4 {[%clk 0:02:59.9]} 1... Nf6 {[%clk 0:02:55.4]} 2. Bf4 {[%clk 0:02:57.7]}
2... d5 {[%clk 0:02:53.3]} 3. Nc3 {[%clk 0:02:57.8]} 3... e6 {[%clk 0:02:53.8]}
4. Nb5 {[%clk 0:02:55.7]} 4... Na6 {[%clk 0:02:48]} 5. e3 {[%clk 0:02:55.4]}
5... c6 {[%clk 0:02:46.7]} 6. Nc3 {[%clk 0:02:55.6]} 6... Bd6 {[%clk 0:02:47.4]}
7. Bxd6 {[%clk 0:02:45.4]} 7... Qxd6 {[%clk 0:02:47.2]} 8. Bxa6 {[%clk
0:02:45.3]} 8... bxa6 {[%clk 0:02:46.9]} 9. Nf3 {[%clk 0:02:45.5]} 9... O-O
{[%clk 0:02:47.5]} 10. O-O {[%clk 0:02:45.4]} 10... c5 {[%clk 0:02:47.4]} 11.
Na4 {[%clk 0:02:35.6]} 11... Ne4 {[%clk 0:02:43.9]} 12. dxc5 {[%clk 0:02:24.3]}
12... Nxc5 {[%clk 0:02:42.9]} 13. Nxc5 {[%clk 0:02:22.8]} 13... Qxc5 {[%clk
0:02:43.8]} 14. c3 {[%clk 0:02:12.5]} 14... Rb8 {[%clk 0:02:43.5]} 15. Qe2
{[%clk 0:02:07.4]} 15... Bd7 {[%clk 0:02:41.1]} 16. Rfd1 {[%clk 0:02:05.8]}
16... Bb5 {[%clk 0:02:40.9]} 17. Qd2 {[%clk 0:02:06.3]} 17... h6 {[%clk
0:02:37]} 18. h4 {[%clk 0:02:03.2]} 18... Rfc8 {[%clk 0:02:37.3]} 19. Qd4 {[%clk
0:02:02.7]} 19... Be2 {[%clk 0:02:32.2]} 20. Rd2 {[%clk 0:01:57.4]} 20... Bxf3
{[%clk 0:02:23.5]} 21. gxf3 {[%clk 0:01:56.6]} 21... Qe7 {[%clk 0:02:23.3]} 22.
Kh2 {[%clk 0:01:50.9]} 22... Rc4 {[%clk 0:02:20.1]} 23. Qe5 {[%clk 0:01:47.3]}
23... Qxh4+ {[%clk 0:01:45]} 24. Kg2 {[%clk 0:01:44.6]} 24... Qg5+ {[%clk
0:01:26.3]} 25. Qxg5 {[%clk 0:01:43]} 25... hxg5 {[%clk 0:01:27.2]} 26. Kg3
{[%clk 0:01:33.5]} 26... Kh7 {[%clk 0:01:26.6]} 27. a4 {[%clk 0:01:26.2]} 27...
Rb3 {[%clk 0:01:17.5]} 28. a5 {[%clk 0:01:21.6]} 28... Kg6 {[%clk 0:01:16.8]}
29. Ra2 {[%clk 0:01:17.5]} 29... Rc5 {[%clk 0:01:15.7]} 30. Rd4 {[%clk
0:01:13.2]} 30... Rcb5 {[%clk 0:01:10.3]} 31. Rd2 {[%clk 0:01:13.2]} 31... Kf5
{[%clk 0:01:08]} 32. Kg2 {[%clk 0:01:07.6]} 32... Ke5 {[%clk 0:00:52.6]} 33. Kg3
{[%clk 0:01:07.2]} 33... f5 {[%clk 0:00:52.7]} 34. Kg2 {[%clk 0:01:05.4]} 34...
f4 {[%clk 0:00:47.7]} 35. Kh3 {[%clk 0:01:04.8]} 35... Kf5 {[%clk 0:00:46.4]}
36. Kg2 {[%clk 0:00:49.8]} 36... Rc5 {[%clk 0:00:41.7]} 37. Rd4 {[%clk
0:00:49.7]} 37... Rbb5 {[%clk 0:00:41.2]} 38. e4+ {[%clk 0:00:37.8]} 38... dxe4
{[%clk 0:00:20.5]} 39. fxe4+ {[%clk 0:00:38.7]} 39... Kg4 {[%clk 0:00:20.9]} 40.
f3+ {[%clk 0:00:37.5]} 40... Kh4 {[%clk 0:00:21.2]} 41. Rda4 {[%clk 0:00:20.1]}
41... g4 {[%clk 0:00:17.7]} 42. fxg4 {[%clk 0:00:19.1]} 42... Kxg4 {[%clk
0:00:17.9]} 43. Kf2 {[%clk 0:00:19.6]} 43... Rb8 {[%clk 0:00:11.3]} 44. Ra1
{[%clk 0:00:19.3]} 44... Rxb2+ {[%clk 0:00:10.8]} 45. Kg1 {[%clk 0:00:19.7]}
45... Kg3 {[%clk 0:00:10.3]} 46. c4 {[%clk 0:00:19.1]} 46... f3 {[%clk
0:00:09.8]} 47. R4a3 {[%clk 0:00:18.2]} 47... Rh5 {[%clk 0:00:09.7]} 48. R3a2
{[%clk 0:00:13.1]} 48... f2+ {[%clk 0:00:06.7]} 0-1

[Event "Early-Titled-Tuesday-Blitz-February-06-2024"]
[Site "Chess.com"]
[Date "2024.02.06"]
[Round "9"]
[White "tetrix83"]
[Black "Gabrielian_Artur"]
[Result "0-1"]
[WhiteElo "2585"]
[BlackElo "2760"]
[TimeControl "180+1"]
[EndTime "9:45:17 PST"]
[Termination "Gabrielian_Artur won on time"]

1. e4 {[%clk 0:02:55.3]} 1... c5 {[%clk 0:02:58.8]} 2. Nf3 {[%clk 0:02:55.1]}
2... d6 {[%clk 0:02:58.9]} 3. Bb5+ {[%clk 0:02:54.1]} 3... Bd7 {[%clk
0:02:58.7]} 4. Bxd7+ {[%clk 0:02:53.4]} 4... Qxd7 {[%clk 0:02:59.1]} 5. O-O
{[%clk 0:02:52.3]} 5... Nc6 {[%clk 0:02:58.6]} 6. c3 {[%clk 0:02:52]} 6... Nf6
{[%clk 0:02:57.7]} 7. d4 {[%clk 0:02:51.6]} 7... Nxe4 {[%clk 0:02:47.6]} 8. d5
{[%clk 0:02:51.1]} 8... Nd8 {[%clk 0:02:44.7]} 9. Re1 {[%clk 0:02:36.2]} 9...
Nf6 {[%clk 0:02:44.3]} 10. Bg5 {[%clk 0:02:32]} 10... e6 {[%clk 0:02:44.2]} 11.
Bxf6 {[%clk 0:02:10.7]} 11... gxf6 {[%clk 0:02:44]} 12. Nbd2 {[%clk 0:02:02.3]}
12... Be7 {[%clk 0:02:40.3]} 13. Qc2 {[%clk 0:01:50.3]} 13... e5 {[%clk
0:02:28.9]} 14. Nh4 {[%clk 0:01:43.4]} 14... Ne6 {[%clk 0:02:01.1]} 15. dxe6
{[%clk 0:01:40.3]} 15... fxe6 {[%clk 0:02:01.1]} 16. c4 {[%clk 0:01:38]} 16...
f5 {[%clk 0:02:00.3]} 17. Nhf3 {[%clk 0:01:37.1]} 17... Rg8 {[%clk 0:01:52.2]}
18. Rad1 {[%clk 0:01:32.2]} 18... Qc6 {[%clk 0:01:51.2]} 19. Re3 {[%clk
0:01:04.4]} 19... e4 {[%clk 0:01:43.7]} 20. Ne1 {[%clk 0:01:03.8]} 20... O-O-O
{[%clk 0:01:40.7]} 21. a3 {[%clk 0:00:59.4]} 21... Bg5 {[%clk 0:01:38.1]} 22.
Rh3 {[%clk 0:00:56.3]} 22... h6 {[%clk 0:01:23.7]} 23. b4 {[%clk 0:00:55.9]}
23... Kb8 {[%clk 0:01:19.6]} 24. Nf1 {[%clk 0:00:53.5]} 24... cxb4 {[%clk
0:01:18]} 25. axb4 {[%clk 0:00:52.2]} 25... d5 {[%clk 0:01:18.4]} 26. cxd5
{[%clk 0:00:44.1]} 26... exd5 {[%clk 0:01:08]} 27. Rc3 {[%clk 0:00:41]} 27...
Qd6 {[%clk 0:01:04.4]} 28. Ne3 {[%clk 0:00:34.3]} 28... Qe5 {[%clk 0:00:58.2]}
29. Rc5 {[%clk 0:00:31.2]} 29... Bxe3 {[%clk 0:00:46.7]} 30. fxe3 {[%clk
0:00:31.2]} 30... b6 {[%clk 0:00:46.7]} 31. Rc6 {[%clk 0:00:30.2]} 31... d4
{[%clk 0:00:46.2]} 32. exd4 {[%clk 0:00:27.1]} 32... Rxd4 {[%clk 0:00:46.3]} 33.
Rc1 {[%clk 0:00:26.9]} 33... Rdd8 {[%clk 0:00:39.9]} 34. Rc7 {[%clk 0:00:24.7]}
34... Qd4+ {[%clk 0:00:27.8]} 35. Kh1 {[%clk 0:00:20.4]} 35... Qd6 {[%clk
0:00:18.9]} 36. Qa2 {[%clk 0:00:18.2]} 36... Qxc7 {[%clk 0:00:13.4]} 37. Rxc7
{[%clk 0:00:19.1]} 37... Kxc7 {[%clk 0:00:13.9]} 38. Qxa7+ {[%clk 0:00:19.3]}
38... Kc6 {[%clk 0:00:14.5]} 39. Qa4+ {[%clk 0:00:14.6]} 39... Kd5 {[%clk
0:00:13.4]} 40. h3 {[%clk 0:00:14.5]} 40... f4 {[%clk 0:00:12.8]} 41. Nc2 {[%clk
0:00:14.4]} 41... e3 {[%clk 0:00:12.6]} 42. Qb5+ {[%clk 0:00:14.3]} 42... Ke4
{[%clk 0:00:13]} 43. Qc4+ {[%clk 0:00:13.9]} 43... Ke5 {[%clk 0:00:13.4]} 44.
Qc3+ {[%clk 0:00:13]} 44... Ke4 {[%clk 0:00:13.5]} 45. Qc6+ {[%clk 0:00:13]}
45... Ke5 {[%clk 0:00:13.5]} 46. Qc7+ {[%clk 0:00:12.6]} 46... Ke4 {[%clk
0:00:13.1]} 47. Qxb6 {[%clk 0:00:11.8]} 47... Kd3 {[%clk 0:00:12.3]} 48. Qc5
{[%clk 0:00:10.2]} 48... Ke2 {[%clk 0:00:11.9]} 49. Qc4+ {[%clk 0:00:09.4]}
49... Kf2 {[%clk 0:00:11.6]} 50. Nd4 {[%clk 0:00:09.3]} 50... f3 {[%clk
0:00:10.7]} 51. Qc1 {[%clk 0:00:01.8]} 51... e2 {[%clk 0:00:10.6]} 52. Nxf3
{[%clk 0:00:01]} 52... Rxg2 {[%clk 0:00:10]} 0-1

[Event "Early-Titled-Tuesday-Blitz-February-06-2024"]
[Site "Chess.com"]
[Date "2024.02.06"]
[Round "9"]
[White "SpongeBob_03"]
[Black "Asteroxylon"]
[Result "1-0"]
[WhiteElo "2228"]
[BlackElo "2354"]
[TimeControl "180+1"]
[EndTime "9:45:17 PST"]
[Termination "SpongeBob_03 won on time"]

1. e4 {[%clk 0:03:00.9]} 1... e6 {[%clk 0:02:58.8]} 2. d4 {[%clk 0:02:57.4]}
2... d5 {[%clk 0:02:58.9]} 3. Nc3 {[%clk 0:02:58]} 3... Nc6 {[%clk 0:02:58.4]}
4. exd5 {[%clk 0:02:57.5]} 4... exd5 {[%clk 0:02:57.4]} 5. Bb5 {[%clk 0:02:42]}
5... Be6 {[%clk 0:02:56.7]} 6. Nf3 {[%clk 0:02:41.3]} 6... Bb4 {[%clk
0:02:55.1]} 7. O-O {[%clk 0:02:40.5]} 7... Ne7 {[%clk 0:02:50.7]} 8. Ne5 {[%clk
0:02:39.7]} 8... O-O {[%clk 0:02:42.7]} 9. Bxc6 {[%clk 0:02:39.2]} 9... bxc6
{[%clk 0:02:42.1]} 10. Ne2 {[%clk 0:02:38.5]} 10... f6 {[%clk 0:02:31.1]} 11.
Nf4 {[%clk 0:02:33.3]} 11... Bf5 {[%clk 0:02:30.1]} 12. Ned3 {[%clk 0:02:28]}
12... Bd6 {[%clk 0:02:28.4]} 13. c3 {[%clk 0:02:26.2]} 13... Qd7 {[%clk
0:02:25]} 14. Re1 {[%clk 0:02:23.7]} 14... Rae8 {[%clk 0:02:18.9]} 15. Be3
{[%clk 0:01:57.3]} 15... Ng6 {[%clk 0:02:13.5]} 16. Nxg6 {[%clk 0:01:53.1]}
16... hxg6 {[%clk 0:02:14.2]} 17. Nc5 {[%clk 0:01:47.4]} 17... Qc8 {[%clk
0:02:14.2]} 18. b4 {[%clk 0:01:45.6]} 18... g5 {[%clk 0:02:05.6]} 19. Qa4 {[%clk
0:01:39.2]} 19... Bxc5 {[%clk 0:01:27.2]} 20. bxc5 {[%clk 0:01:38.1]} 20... Qd7
{[%clk 0:01:26.7]} 21. Qa6 {[%clk 0:01:04.9]} 21... Kf7 {[%clk 0:01:19.1]} 22.
a4 {[%clk 0:00:58.6]} 22... Rh8 {[%clk 0:01:19.1]} 23. f3 {[%clk 0:00:47.5]}
23... Rh6 {[%clk 0:01:05.2]} 24. Bf2 {[%clk 0:00:44.9]} 24... Reh8 {[%clk
0:01:04.6]} 25. Bg3 {[%clk 0:00:44.8]} 25... g4 {[%clk 0:00:53.1]} 26. Qxa7
{[%clk 0:00:41.6]} 26... gxf3 {[%clk 0:00:52.5]} 27. gxf3 {[%clk 0:00:35.8]}
27... Rc8 {[%clk 0:00:51.1]} 28. a5 {[%clk 0:00:33.9]} 28... Bd3 {[%clk
0:00:47.4]} 29. Re3 {[%clk 0:00:32.1]} 29... Bc4 {[%clk 0:00:41.6]} 30. Rae1
{[%clk 0:00:31.6]} 30... Qf5 {[%clk 0:00:32.4]} 31. Qb7 {[%clk 0:00:22.8]} 31...
Rch8 {[%clk 0:00:21]} 32. Qxc7+ {[%clk 0:00:21.5]} 32... Kg6 {[%clk 0:00:20.7]}
33. Re7 {[%clk 0:00:18.2]} 33... R8h7 {[%clk 0:00:20.1]} 34. Qf4 {[%clk
0:00:16.7]} 34... Qxf4 {[%clk 0:00:18.3]} 35. Bxf4 {[%clk 0:00:17.6]} 35... Rh3
{[%clk 0:00:18.8]} 36. Bg3 {[%clk 0:00:17.9]} 36... Kf5 {[%clk 0:00:14.9]} 37.
Kg2 {[%clk 0:00:18.3]} 37... g5 {[%clk 0:00:13.9]} 38. Rxh7 {[%clk 0:00:17.5]}
38... Rxh7 {[%clk 0:00:14.8]} 39. Ra1 {[%clk 0:00:16.8]} 39... Ra7 {[%clk
0:00:13.4]} 40. Bb8 {[%clk 0:00:17.4]} 40... Ra8 {[%clk 0:00:12.5]} 41. Bd6
{[%clk 0:00:18.1]} 41... g4 {[%clk 0:00:11.9]} 42. Bc7 {[%clk 0:00:17.5]} 42...
Be2 {[%clk 0:00:10.4]} 43. fxg4+ {[%clk 0:00:17.4]} 43... Kxg4 {[%clk
0:00:10.8]} 44. Bb6 {[%clk 0:00:18]} 44... Bf3+ {[%clk 0:00:10.5]} 45. Kf2
{[%clk 0:00:18]} 45... Be4 {[%clk 0:00:10.1]} 46. a6 {[%clk 0:00:18.5]} 46...
Bd3 {[%clk 0:00:10.5]} 47. a7 {[%clk 0:00:19.4]} 47... f5 {[%clk 0:00:11]} 48.
Re1 {[%clk 0:00:19.4]} 48... Kf4 {[%clk 0:00:09.5]} 49. Re7 {[%clk 0:00:18.6]}
49... Rh8 {[%clk 0:00:09.4]} 50. Bc7+ {[%clk 0:00:17.4]} 50... Kg5 {[%clk
0:00:08.6]} 51. Bb8 {[%clk 0:00:17.6]} 51... f4 {[%clk 0:00:01.6]} 52. Rg7+
{[%clk 0:00:15.6]} 52... Kf6 {[%clk 0:00:01.2]} 53. Rg2 {[%clk 0:00:14.8]} 1-0